bitfinex/quotes_SOLUSD_20251117
["timestamp","ask_amount","ask_price","bid_price","bid_amount"]
[1763378177791,102.2,142.75,142.73,0.72]
[1763378177981,102.2,142.75,142.72,4.85928543]
[1763378178181,102.2,142.75,142.72,4.13928543]
[1763378178399,102.49,142.75,142.71,4.85928543]
[1763378178809,102.49,142.75,142.72,0.72]
[1763378180919,102.2,142.75,142.72,4.85928543]
[1763378181612,102.2,142.74,142.73,4.85928543]
[1763378187823,102.2,142.74,142.73,27.51048543]
[1763378193134,102.2,142.74,142.73,4.85928543]
[1763378193516,102.2,142.74,142.73,27.51048543]
[1763378194835,102.2,142.74,142.73,23.3712]
[1763378195012,102.2,142.74,142.73,26.01552905]
[1763378195752,0.1,142.77,142.73,26.01552905]
[1763378196048,0.1,142.77,142.75,2.64432905]
[1763378196506,0.1,142.77,142.75,3.32432905]
[1763378198757,0.1,142.77,142.76,0.68]
[1763378199035,0.1,142.77,142.75,2.64432905]
[1763378199211,0.1,142.77,142.75,3.32432905]
[1763378205516,0.1,142.77,142.75,0.68]
[1763378205925,0.1,142.77,142.75,3.32432905]
[1763378210428,0.1,142.77,142.75,2.64432905]
[1763378210753,0.1,142.77,142.76,0.68]
[1763378211040,0.1,142.77,142.75,2.64432905]
[1763378211224,0.1,142.77,142.75,3.32432905]
[1763378212041,0.1,142.77,142.76,0.68]
[1763378212233,0.1,142.77,142.76,3.32432905]
[1763378213323,0.1,142.77,142.76,2.64432905]
[1763378213759,0.1,142.77,142.76,3.32432905]
[1763378218644,0.1,142.77,142.76,25.97552905]
[1763378220954,0.1,142.77,142.76,32.98029228]
[1763378221159,0.1,142.77,142.76,25.97552905]
[1763378222156,0.1,142.77,142.76,32.98029228]
[1763378222356,0.39,142.82,142.77,9.78882769]
[1763378222357,0.1,142.82,142.77,9.78882769]
[1763378222550,0.1,142.82,142.81,2.64432905]
[1763378222853,0.1,142.82,142.81,3.32432905]
[1763378224251,0.1,142.82,142.81,0.68]
[1763378224457,0.1,142.82,142.81,3.32432905]
[1763378225256,0.1,142.82,142.81,25.97552905]
[1763378226445,0.1,142.82,142.81,32.97783981]
[1763378227634,0.1,142.82,142.81,25.97552905]
[1763378228545,0.1,142.82,142.81,32.97783981]
[1763378231271,0.1,142.82,142.81,25.97552905]
[1763378231868,0.1,142.82,142.81,32.97783981]
[1763378232861,0.1,142.82,142.81,54.02234894]
[1763378235247,0.1,142.82,142.81,47.02003818]
[1763378237363,0.1,142.82,142.81,44.37570913]
[1763378237661,0.1,142.82,142.81,47.02003818]
[1763378238983,0.1,142.82,142.81,43.69570913]
[1763378239137,0.1,142.82,142.79,0.72]
[1763378239342,0.1,142.82,142.8,5.45065732]
[1763378239658,0.1,142.82,142.8,28.10185732]
[1763378239841,0.1,142.82,142.8,25.29552905]
[1763378240164,0.1,142.82,142.8,23.3712]
[1763378240341,0.1,142.82,142.8,26.01552905]
[1763378241457,0.1,142.82,142.8,25.29552905]
[1763378241947,0.39,142.82,142.79,25.29552905]
[1763378242150,3.03432905,142.82,142.78,22.6512]
[1763378242462,102.49,142.81,142.78,22.6512]
[1763378242846,0.29,142.8,142.78,22.6512]
[1763378243644,0.29,142.8,142.77,2.80691905]
[1763378243958,2.93432905,142.8,142.76,22.6512]
[1763378244277,2.93432905,142.8,142.75,2.64432905]
[1763378244457,0.29,142.79,142.75,2.64432905]
[1763378244648,0.29,142.79,142.75,0.72]
[1763378244843,0.29,142.79,142.75,3.36432905]
[1763378245244,0.29,142.79,142.75,2.64432905]
[1763378245450,2.93432905,142.79,142.75,22.6512]
[1763378245662,2.93432905,142.79,142.74,2.64432905]
[1763378245969,2.93432905,142.78,142.74,22.6512]
[1763378246367,0.29,142.77,142.74,22.6512]
[1763378247986,0.29,142.77,142.73,3.36432905]
[1763378250461,0.29,142.77,142.74,0.72]
[1763378251865,102.2,142.76,142.74,0.72]
[1763378253271,102.49,142.76,142.72,21.77928187]
[1763378253475,102.49,142.76,142.73,2.64432905]
[1763378253708,2.64432905,142.74,142.71,21.06076029]
[1763378253985,2.64432905,142.72,142.67,3.36432905]
[1763378254371,0.29,142.71,142.68,3.36432905]
[1763378255075,2.93432905,142.71,142.67,2.64432905]
[1763378255480,2.93432905,142.71,142.67,3.36432905]
[1763378256580,0.29,142.72,142.68,3.32432905]
[1763378256878,0.29,142.72,142.68,4.81492782]
[1763378260562,102.2,142.71,142.68,4.81492782]
[1763378261775,102.2,142.71,142.69,0.68]
[1763378262367,102.2,142.71,142.68,4.81492782]
[1763378264889,102.2,142.71,142.69,0.68]
[1763378265061,102.2,142.71,142.69,4.81492782]
[1763378265387,102.2,142.71,142.7,4.13492782]
[1763378265569,102.2,142.71,142.7,4.81492782]
[1763378267293,102.2,142.71,142.7,4.13492782]
[1763378267469,102.2,142.71,142.68,0.68]
[1763378267674,102.49,142.71,142.68,4.81492782]
[1763378268075,102.2,142.71,142.68,4.81492782]
[1763378268495,102.2,142.71,142.69,4.81492782]
[1763378268695,102.2,142.71,142.7,4.13492782]
[1763378268899,102.2,142.71,142.69,4.13492782]
[1763378269202,102.2,142.71,142.68,4.81492782]
[1763378269360,102.2,142.7,142.68,4.81492782]
[1763378273470,4.42492782,142.69,142.62,0.2]
[1763378273677,4.13492782,142.64,142.62,0.2]
[1763378273963,4.13492782,142.63,142.62,0.2]
[1763378274378,4.42492782,142.63,142.62,0.2]
[1763378274573,5.30492782,142.65,142.62,0.2]
[1763378274778,4.42492782,142.64,142.62,0.2]
[1763378277671,4.13492782,142.65,142.63,0.68]
[1763378277871,27.21828939,142.66,142.62,0.2]
[1763378278098,27.21828939,142.66,142.62,0.88]
[1763378278307,4.56708939,142.66,142.62,0.88]
[1763378278592,0.29,142.67,142.63,0.68]
[1763378278800,0.29,142.67,142.63,4.81492782]
[1763378279496,0.29,142.67,142.63,0.68]
[1763378280316,0.29,142.68,142.63,4.81492782]
[1763378280615,9.78882769,142.72,142.64,0.68]
[1763378280616,102.2,142.67,142.64,0.68]
[1763378280767,102.2,142.67,142.64,30.34370733]
[1763378280972,4.42492782,142.72,142.64,30.34370733]
[1763378281174,102.49,142.71,142.65,0.68]
[1763378281397,102.49,142.71,142.64,22.6512]
[1763378281599,0.43216157,142.7,142.64,23.3312]
[1763378281795,4.56708939,142.7,142.64,27.46612782]
[1763378283112,4.56708939,142.7,142.64,26.78612782]
[1763378283323,4.56708939,142.7,142.65,4.81492782]
[1763378283505,0.29,142.69,142.65,4.81492782]
[1763378283705,102.2,142.68,142.65,4.81492782]
[1763378287097,137.95246273,142.67,142.65,4.81492782]
[1763378287288,137.95246273,142.67,142.65,0.68]
[1763378287476,102.2,142.67,142.65,0.68]
[1763378290306,106.62492782,142.66,142.63,0.67]
[1763378290487,102.2,142.65,142.63,0.67]
[1763378293002,102.2,142.65,142.63,4.80492782]
[1763378293504,102.2,142.65,142.64,0.67]
[1763378294104,102.2,142.65,142.62,0.87]
[1763378294606,102.2,142.65,142.63,0.67]
[1763378295896,102.2,142.64,142.63,0.67]
[1763378303507,102.2,142.64,142.62,0.2]
[1763378303844,0.29,142.63,142.62,0.2]
[1763378304404,106.62492782,142.64,142.62,0.2]
[1763378305732,102.2,142.64,142.62,0.2]
[1763378306632,102.49,142.64,142.62,0.2]
[1763378307029,4.42492782,142.63,142.62,0.2]
[1763378307408,102.49,142.64,142.62,0.2]
[1763378307620,4.42492782,142.64,142.62,0.2]
[1763378308433,7.00835252,142.69,142.62,0.2]
[1763378308434,4.42492782,142.65,142.62,0.2]
[1763378308614,0.29,142.65,142.62,0.2]
[1763378308815,4.13492782,142.65,142.62,0.87]
[1763378309015,4.42492782,142.65,142.62,0.2]
[1763378310234,0.29,142.67,142.63,0.67]
[1763378310434,102.2,142.66,142.63,0.67]
[1763378310814,102.49,142.66,142.63,0.67]
[1763378311630,102.2,142.66,142.63,0.67]
[1763378311830,102.49,142.66,142.63,0.67]
[1763378312021,4.13492782,142.64,142.62,0.2]
[1763378312423,4.42492782,142.65,142.62,0.2]
[1763378312642,4.42492782,142.65,142.62,0.87]
[1763378313012,4.13492782,142.65,142.62,0.87]
[1763378313814,106.62492782,142.66,142.62,0.2]
[1763378314021,102.2,142.66,142.63,0.67]
[1763378314945,102.49,142.66,142.63,0.67]
[1763378315253,106.62492782,142.66,142.63,0.67]
[1763378316238,102.2,142.65,142.63,0.67]
[1763378319936,102.2,142.65,142.62,0.2]
[1763378320126,102.2,142.65,142.62,0.89]
[1763378321130,102.49,142.65,142.62,0.89]
[1763378321326,105.13880632,142.65,142.62,0.2]
[1763378321524,105.13880632,142.65,142.62,0.89]
[1763378322231,102.2,142.64,142.62,0.89]
[1763378322636,102.2,142.64,142.62,0.2]
[1763378322843,105.13880632,142.63,142.62,0.2]
[1763378325750,102.2,142.63,142.62,0.2]
[1763378327155,102.2,142.63,142.62,0.89]
[1763378327340,102.2,142.63,142.62,0.2]
[1763378327654,102.2,142.63,142.62,0.89]
[1763378328927,102.2,142.63,142.62,26.19000632]
[1763378331260,102.2,142.63,142.62,3.53880632]
[1763378332767,102.2,142.63,142.62,26.19000632]
[1763378333642,102.2,142.63,142.62,23.5412]
[1763378333847,102.2,142.63,142.62,0.89]
[1763378337659,102.2,142.63,142.62,3.53880632]
[1763378337865,102.2,142.63,142.62,26.19000632]
[1763378338073,102.2,142.63,142.62,25.99000632]
[1763378338853,102.2,142.63,142.62,23.3412]
[1763378339369,102.2,142.63,142.62,0.69]
[1763378340560,102.2,142.63,142.62,3.33880632]
[1763378341777,102.2,142.63,142.62,0.69]
[1763378343769,102.2,142.63,142.62,3.33880632]
[1763378343979,102.2,142.63,142.62,25.99000632]
[1763378359393,102.2,142.66,142.63,22.6512]
[1763378359580,102.2,142.66,142.64,2.64880632]
[1763378359782,102.2,142.66,142.64,0.66]
[1763378360397,102.49,142.66,142.62,25.96000632]
[1763378360796,102.49,142.66,142.63,0.66]
[1763378361112,102.49,142.66,142.63,3.30880632]
[1763378362609,102.2,142.66,142.63,3.30880632]
[1763378363289,102.49,142.66,142.63,3.30880632]
[1763378364415,102.49,142.66,142.62,22.6512]
[1763378364416,0.29,142.65,142.62,22.6512]
[1763378364810,0.29,142.65,142.63,22.6512]
[1763378365796,102.49,142.66,142.63,22.6512]
[1763378366003,0.29,142.65,142.63,22.6512]
[1763378366202,102.49,142.66,142.63,22.6512]
[1763378366393,102.2,142.66,142.64,3.30880632]
[1763378367793,102.2,142.66,142.65,3.30880632]
[1763378368492,102.2,142.66,142.65,2.64880632]
[1763378369293,102.2,142.66,142.64,2.64880632]
[1763378369508,102.2,142.66,142.64,3.30880632]
[1763378370408,102.2,142.66,142.65,0.66]
[1763378371021,102.2,142.66,142.65,3.30880632]
[1763378371219,102.2,142.69,142.65,3.30880632]
[1763378371400,102.2,142.69,142.67,2.64880632]
[1763378371717,102.2,142.69,142.66,3.30880632]
[1763378371926,102.2,142.69,142.67,0.66]
[1763378372102,102.2,142.69,142.67,3.30880632]
[1763378372603,102.2,142.69,142.68,2.64880632]
[1763378373008,102.2,142.69,142.68,3.30880632]
[1763378373199,102.2,142.69,142.67,25.30000632]
[1763378373404,102.2,142.69,142.67,25.96000632]
[1763378373917,102.2,142.69,142.68,2.64880632]
[1763378374110,102.2,142.69,142.68,3.30880632]
[1763378376018,102.2,142.72,142.68,3.30880632]
[1763378376218,102.2,142.72,142.7,2.64880632]
[1763378376630,102.2,142.72,142.69,3.30880632]
[1763378377230,102.49,142.72,142.69,3.30880632]
[1763378378232,102.49,142.72,142.69,22.6512]
[1763378379732,102.49,142.72,142.69,23.3512]
[1763378379936,102.49,142.72,142.69,27.4857395]
[1763378380431,102.2,142.72,142.7,4.8345395]
[1763378381431,102.2,142.72,142.7,4.1345395]
[1763378382722,102.2,142.72,142.7,4.8345395]
[1763378383429,102.2,142.72,142.71,4.8345395]
[1763378384320,102.2,142.72,142.71,27.4857395]
[1763378386408,102.2,142.72,142.71,44.28178462]
[1763378386609,102.2,142.77,142.75,22.6512]
[1763378386809,102.2,142.77,142.76,4.1345395]
[1763378387612,102.2,142.77,142.76,4.8345395]
[1763378387820,102.2,142.77,142.76,4.1345395]
[1763378391834,102.2,142.77,142.75,23.3512]
[1763378391835,102.2,142.77,142.75,27.4857395]
[1763378392036,102.2,142.77,142.75,22.6512]
[1763378392336,106.6245395,142.76,142.7,4.8345395]
[1763378392547,106.6245395,142.75,142.71,22.6512]
[1763378392842,102.49,142.75,142.71,22.6512]
[1763378393038,0.29,142.74,142.71,22.6512]
[1763378395247,0.29,142.74,142.72,22.6512]
[1763378395853,0.29,142.74,142.71,26.7857395]
[1763378396222,0.29,142.74,142.72,22.6512]
[1763378397042,102.49,142.75,142.72,22.6512]
[1763378397433,102.2,142.75,142.71,4.8345395]
[1763378397621,102.49,142.75,142.71,4.8345395]
[1763378398148,102.2,142.75,142.73,4.1345395]
[1763378398649,102.2,142.75,142.73,4.8345395]
[1763378398833,102.2,142.75,142.74,0.7]
[1763378399141,102.2,142.75,142.73,4.1345395]
[1763378399339,102.2,142.75,142.73,4.8345395]
[1763378400244,102.2,142.75,142.72,4.1345395]
[1763378400449,102.2,142.75,142.71,4.1345395]
[1763378400450,0.29,142.74,142.71,4.1345395]
[1763378401255,102.2,142.75,142.72,4.1345395]
[1763378401473,102.49,142.75,142.72,4.1345395]
[1763378406060,0.29,142.74,142.71,4.1345395]
[1763378406231,102.49,142.74,142.71,4.1345395]
[1763378406650,102.2,142.73,142.7,4.8345395]
[1763378406952,102.49,142.73,142.69,4.7945395]
[1763378407168,0.29,142.72,142.67,44.37491774]
[1763378407467,4.4245395,142.72,142.67,4.7945395]
[1763378407765,4.1345395,142.7,142.65,21.72667602]
[1763378407969,4.1345395,142.69,142.64,4.7945395]
[1763378408121,4.1345395,142.69,142.64,0.66]
[1763378408325,0.29,142.68,142.64,4.7945395]
[1763378408763,4.1345395,142.69,142.65,0.66]
[1763378408940,0.29,142.69,142.65,4.7945395]
[1763378410640,0.29,142.69,142.65,4.1345395]
[1763378410956,4.4245395,142.69,142.64,4.1345395]
[1763378411332,0.29,142.68,142.64,4.1345395]
[1763378412330,26.7857395,142.7,142.66,4.1345395]
[1763378412536,26.7857395,142.7,142.64,7.0106324]
[1763378412537,22.9412,142.7,142.67,4.1345395]
[1763378412753,0.29,142.69,142.67,4.1345395]
[1763378412948,4.1345395,142.72,142.68,4.1345395]
[1763378413155,0.29,142.71,142.67,4.1345395]
[1763378415159,0.29,142.71,142.68,4.1345395]
[1763378415357,102.2,142.7,142.68,4.7945395]
[1763378417154,102.49,142.7,142.68,4.1345395]
[1763378418763,102.2,142.7,142.68,4.1345395]
[1763378419851,102.2,142.7,142.67,4.8445395]
[1763378420557,102.49,142.7,142.67,4.8445395]
[1763378421466,102.2,142.7,142.67,4.8445395]
[1763378423166,102.49,142.7,142.66,0.71]
[1763378423363,102.49,142.7,142.67,4.1345395]
[1763378423562,0.29,142.69,142.65,4.1345395]
[1763378423766,4.4245395,142.69,142.65,4.1345395]
[1763378424270,0.29,142.68,142.65,4.1345395]
[1763378424673,102.49,142.68,142.65,4.1345395]
[1763378425438,102.49,142.68,142.65,4.8445395]
[1763378425639,102.2,142.68,142.66,0.71]
[1763378428173,102.2,142.68,142.65,4.8445395]
[1763378428378,102.49,142.67,142.63,4.8445395]
[1763378428671,106.6245395,142.67,142.62,4.1345395]
[1763378428884,0.29,142.66,142.62,4.8445395]
[1763378429050,0.29,142.66,142.62,0.71]
[1763378429369,0.29,142.66,142.62,4.8445395]
[1763378429748,0.29,142.66,142.63,0.71]
[1763378431070,102.2,142.67,142.63,0.71]
[1763378431260,102.49,142.67,142.63,4.8445395]
[1763378431971,0.29,142.66,142.63,4.8445395]
[1763378432355,0.29,142.66,142.62,4.8445395]
[1763378432876,0.29,142.66,142.63,0.71]
[1763378434277,0.29,142.66,142.63,4.8445395]
[1763378436078,102.2,142.67,142.64,4.8445395]
[1763378436559,102.2,142.67,142.64,0.66]
[1763378436764,102.2,142.67,142.64,4.7945395]
[1763378437964,102.49,142.67,142.63,4.1345395]
[1763378438186,0.29,142.66,142.62,4.7945395]
[1763378438703,0.29,142.66,142.63,0.66]
[1763378439494,102.2,142.65,142.63,0.66]
[1763378439653,102.2,142.65,142.62,4.1345395]
[1763378440159,102.2,142.65,142.63,0.66]
[1763378441159,102.2,142.65,142.62,2.64847352]
[1763378441492,102.49,142.65,142.62,2.64847352]
[1763378441691,102.49,142.65,142.62,3.30847352]
[1763378442057,102.49,142.65,142.62,2.64847352]
[1763378442785,102.49,142.65,142.62,3.30847352]
[1763378444884,102.49,142.65,142.63,2.64847352]
[1763378445089,102.2,142.65,142.63,2.64847352]
[1763378445973,102.2,142.65,142.63,3.30847352]
[1763378449367,102.2,142.65,142.64,3.30847352]
[1763378455410,102.2,142.65,142.64,0.66]
[1763378455588,102.2,142.65,142.64,3.30847352]
[1763378458686,102.2,142.65,142.64,2.64847352]
[1763378458880,102.2,142.65,142.63,3.30847352]
[1763378459281,102.2,142.65,142.64,0.66]
[1763378460209,102.2,142.65,142.63,2.64847352]
[1763378460395,102.2,142.65,142.64,0.66]
[1763378460795,102.2,142.65,142.63,3.30847352]
[1763378461010,102.2,142.65,142.63,0.66]
[1763378461193,102.2,142.65,142.63,3.30847352]
[1763378462317,102.2,142.65,142.64,0.66]
[1763378463608,102.2,142.65,142.64,3.30847352]
[1763378467908,102.2,142.65,142.64,0.66]
[1763378468723,0.29,142.68,142.64,0.66]
[1763378471123,2.93847352,142.68,142.64,0.66]
[1763378471629,0.29,142.67,142.64,0.66]
[1763378481817,0.29,142.67,142.63,2.64847352]
[1763378482018,2.64847352,142.66,142.62,0.67]
[1763378482325,2.64847352,142.64,142.59,3.51847352]
[1763378482530,2.64847352,142.64,142.6,0.67]
[1763378482732,9.78882769,142.69,142.6,0.67]
[1763378482733,17.00941674,142.72,142.61,2.64847352]
[1763378482899,17.00941674,142.72,142.64,2.64847352]
[1763378482900,32.31376309,142.69,142.64,2.64847352]
[1763378483104,25.29967352,142.68,142.63,2.64847352]
[1763378483400,25.29967352,142.68,142.64,0.67]
[1763378483602,2.93847352,142.67,142.62,0.67]
[1763378483832,2.64847352,142.66,142.62,0.67]
[1763378484048,0.29,142.66,142.62,0.67]
[1763378484414,2.93847352,142.66,142.59,22.8512]
[1763378484730,2.64847352,142.65,142.6,3.31847352]
[1763378485035,2.64847352,142.64,142.6,0.67]
[1763378485221,2.93847352,142.64,142.6,0.67]
[1763378485830,2.93847352,142.63,142.59,0.2]
[1763378486210,0.29,142.62,142.59,0.2]
[1763378486412,0.29,142.62,142.59,0.87]
[1763378487911,102.49,142.62,142.59,0.87]
[1763378488633,105.13847352,142.62,142.59,0.2]
[1763378490545,2.93847352,142.61,142.59,0.2]
[1763378491021,104.84847352,142.6,142.59,0.2]
[1763378491218,2.93847352,142.6,142.59,0.2]
[1763378491729,2.64847352,142.6,142.59,0.2]
[1763378492711,2.64847352,142.61,142.59,0.2]
[1763378493530,2.64847352,142.6,142.59,0.2]
[1763378494828,35.37850121,142.6,142.59,0.2]
[1763378495034,45.97239529,142.6,142.59,0.2]
[1763378495543,35.37850121,142.6,142.59,0.2]
[1763378496713,38.19055084,142.6,142.59,0.2]
[1763378497243,25.58967352,142.6,142.59,0.2]
[1763378497440,35.37850121,142.6,142.59,0.2]
[1763378498425,22.6512,142.6,142.59,0.2]
[1763378498618,25.29967352,142.6,142.59,0.2]
[1763378499513,25.58967352,142.6,142.59,0.2]
[1763378501039,25.29967352,142.6,142.59,0.2]
[1763378502944,27.08399666,142.6,142.59,0.2]
[1763378503620,26.79399666,142.6,142.59,0.2]
[1763378503944,27.08399666,142.6,142.59,0.2]
[1763378504940,26.79399666,142.6,142.59,0.2]
[1763378507249,27.08399666,142.6,142.59,0.2]
[1763378510359,36.87282435,142.6,142.59,0.2]
[1763378510558,39.68487398,142.6,142.59,0.2]
[1763378510758,21.17647064,142.6,142.59,0.2]
[1763378512337,17.03367398,142.6,142.59,0.2]
[1763378514764,21.17647064,142.6,142.59,0.2]
[1763378515563,101.8,142.56,142.55,0.87]
[1763378515762,4.14279666,142.56,142.55,0.87]
[1763378516273,4.14279666,142.56,142.55,0.2]
[1763378516968,26.79399666,142.56,142.55,0.2]
[1763378519957,4.14279666,142.57,142.55,0.87]
[1763378520860,4.14279666,142.56,142.55,0.87]
[1763378521370,4.14279666,142.57,142.55,0.87]
[1763378521868,4.14279666,142.57,142.56,0.67]
[1763378522050,22.6512,142.59,142.56,0.67]
[1763378522051,26.79399666,142.59,142.56,0.67]
[1763378522251,4.14279666,142.61,142.56,4.81279666]
[1763378522554,22.6512,142.6,142.56,4.81279666]
[1763378522868,22.6512,142.6,142.57,0.67]
[1763378525376,102.2,142.59,142.57,4.81279666]
[1763378525577,102.2,142.59,142.58,0.67]
[1763378526077,102.2,142.59,142.58,4.81279666]
[1763378543186,102.2,142.59,142.58,0.67]
[1763378544361,102.2,142.59,142.56,4.85279666]
[1763378544761,102.2,142.59,142.57,0.71]
[1763378545182,102.2,142.59,142.56,4.14279666]
[1763378545385,102.2,142.59,142.57,0.71]
[1763378548885,102.2,142.59,142.58,4.14279666]
[1763378549276,102.2,142.59,142.58,4.85279666]
[1763378550678,0.29,142.62,142.58,4.85279666]
[1763378553090,0.29,142.62,142.59,0.71]
[1763378553287,102.2,142.61,142.58,4.14279666]
[1763378553492,102.2,142.61,142.58,4.85279666]
[1763378553992,102.49,142.61,142.58,4.85279666]
[1763378554491,102.2,142.61,142.58,4.85279666]
[1763378555196,102.2,142.61,142.58,0.71]
[1763378555999,102.2,142.61,142.59,0.71]
[1763378556489,102.2,142.6,142.59,0.71]
[1763378561696,102.2,142.6,142.58,4.14279666]
[1763378561899,102.2,142.6,142.58,0.71]
[1763378562285,102.2,142.59,142.58,0.71]
[1763378563098,102.49,142.59,142.55,0.2]
[1763378563298,104.85028207,142.59,142.55,0.91]
[1763378563596,2.94028207,142.58,142.55,0.2]
[1763378563895,2.94028207,142.58,142.55,0.91]
[1763378564287,105.14028207,142.59,142.55,0.91]
[1763378566694,105.14028207,142.59,142.55,3.56028207]
[1763378568101,102.2,142.58,142.55,3.56028207]
[1763378568300,102.2,142.58,142.56,2.65028207]
[1763378568602,102.2,142.58,142.57,2.65028207]
[1763378568898,102.2,142.58,142.57,3.36028207]
[1763378575207,24.54834513,142.68,142.58,22.6512]
[1763378575208,102.2,142.62,142.58,22.6512]
[1763378575409,102.2,142.62,142.61,2.65028207]
[1763378575798,102.2,142.62,142.61,3.36028207]
[1763378583806,102.2,142.61,142.57,6.14393613]
[1763378583997,105.14028207,142.61,142.57,0.71]
[1763378586322,105.14028207,142.61,142.57,3.36028207]
[1763378586508,102.2,142.61,142.58,2.65028207]
[1763378586822,102.2,142.61,142.58,3.32028207]
[1763378587124,102.2,142.61,142.59,0.67]
[1763378588125,102.2,142.61,142.6,2.65028207]
[1763378588428,0.29,142.65,142.6,2.65028207]
[1763378588727,0.29,142.65,142.61,2.65028207]
[1763378590421,0.29,142.65,142.61,3.32028207]
[1763378591405,22.6512,142.66,142.63,2.65028207]
[1763378591637,102.2,142.64,142.63,2.65028207]
[1763378592102,0.29,142.67,142.63,2.65028207]
[1763378592103,0.29,142.69,142.63,3.32028207]
[1763378592306,102.2,142.68,142.65,2.65028207]
[1763378592610,102.2,142.68,142.66,3.32028207]
[1763378593026,102.2,142.68,142.66,0.67]
[1763378593223,102.2,142.68,142.66,3.32028207]
[1763378593620,102.2,142.68,142.66,2.65028207]
[1763378597142,102.2,142.68,142.66,3.32028207]
[1763378597444,102.2,142.67,142.66,3.32028207]
[1763378599148,102.2,142.67,142.66,0.67]
[1763378600236,102.2,142.67,142.66,3.32028207]
[1763378604536,102.2,142.7,142.66,10.32995541]
[1763378604740,102.2,142.7,142.69,2.65028207]
[1763378605248,102.2,142.7,142.69,3.34028207]
[1763378607060,101.7,142.7,142.69,3.34028207]
[1763378608750,101.7,142.7,142.69,0.69]
[1763378609458,101.7,142.7,142.68,2.65028207]
[1763378609628,101.7,142.7,142.67,3.34028207]
[1763378610151,101.7,142.7,142.67,0.69]
[1763378610454,0.29,142.69,142.66,0.69]
[1763378610648,101.7,142.68,142.65,3.34028207]
[1763378610959,101.7,142.68,142.66,0.69]
[1763378611451,101.99,142.68,142.64,3.34028207]
[1763378611630,101.99,142.68,142.65,0.69]
[1763378611824,101.7,142.68,142.65,0.69]
[1763378612225,0.29,142.67,142.63,3.34028207]
[1763378612441,104.64028207,142.67,142.62,2.65028207]
[1763378612647,101.99,142.66,142.62,3.34028207]
[1763378613240,0.29,142.65,142.6,3.34028207]
[1763378613454,0.29,142.65,142.6,0.69]
[1763378613658,0.29,142.65,142.61,3.34028207]
[1763378617555,0.29,142.65,142.61,2.65028207]
[1763378617741,0.29,142.65,142.61,3.36028207]
[1763378617940,101.7,142.64,142.61,2.65028207]
[1763378618153,101.7,142.64,142.62,0.71]
[1763378618344,101.7,142.64,142.63,2.65028207]
[1763378618658,101.7,142.64,142.62,3.36028207]
[1763378619183,101.7,142.64,142.63,0.71]
[1763378619734,101.7,142.64,142.62,0.71]
[1763378619962,101.99,142.64,142.6,3.36028207]
[1763378620258,101.7,142.63,142.6,0.71]
[1763378620563,101.7,142.63,142.61,3.36028207]
[1763378620742,101.7,142.62,142.61,3.36028207]
[1763378620944,101.7,142.62,142.61,2.65028207]
[1763378621548,101.7,142.62,142.61,3.36028207]
[1763378624865,101.7,142.62,142.61,4.84868226]
[1763378626768,101.7,142.62,142.58,50.74166653]
[1763378626769,101.7,142.62,142.6,4.13868226]